Cogmind - Beta 13 @@@ ROGUE MODE // 2024.04.20 @ 14:35:52 Player: Cherman0 Result: Self-destructed Performance ------------- Evolutions (2) 1000 Regions Visited (5) 1000 Robots Destroyed (61) 305 Value Destroyed (1419) 1419 Prototype IDs (31) 620 Alien Tech Used (0) 0 Bonus (252) 252 TOTAL SCORE: 4596 Bonus ------- Follower Combat Kills 25 Aligned with FarCom 300 Friendly Fire -73 Cogmind --------- Core Integrity 504/550 Matter 248/300 Energy 101/160 System Corruption 1% Temperature Cool (0) Movement Walking (130) Location -8/Materials Parts ------- > --- POWER (1) -------- Light Nuclear Core > --- PROPULSION (4) --- Improved Titanium Leg Improved Titanium Leg Improved Titanium Leg Improved Titanium Leg > --- UTILITY (4) ------ High-capacity Storage Unit Structural Scanner Visual Processing Unit Transport Network Coupler > --- WEAPON (2) ------- Light Cannon Advanced EMP Blaster > --- INVENTORY (20) --- Light Treads Light Treads Improved Flight Unit Improved Flight Unit Cesium-ion Thruster Small Storage Unit Medium Storage Unit High-capacity Battery (250) High-capacity Battery (250) High-capacity Matter Pod (200) Experimental Sensor Array Signal Interpreter Beam Cannon Light Cannon Light Cannon Grenade Launcher Datajack Mining Laser Peak State ------------ > --- POWER ------------ Light Nuclear Core > --- PROPULSION ------- Improved Titanium Leg Improved Titanium Leg Improved Titanium Leg Improved Titanium Leg > --- UTILITY ---------- High-capacity Storage Unit Experimental Sensor Array Seismic Detector > --- WEAPON ----------- Light Cannon Grenade Launcher > --- INVENTORY -------- Ion Engine Light Treads Light Treads Small Storage Unit Medium Storage Unit High-capacity Battery High-capacity Battery High-capacity Matter Pod Structural Scanner Visual Processing Unit Signal Interpreter Seismic Detector Transport Network Coupler Beam Cannon Light Cannon Light Cannon Light Cannon Datajack Mining Laser [Rating: 34] Favorites ----------- Power Light Ion Engine Engine Light Ion Engine Power Core Light Nuclear Core Propulsion Light Treads Treads Light Treads Leg Improved Titanium Leg Hover Unit Aerolev Unit Utility High-capacity Storage Unit Device Seismic Detector Storage High-capacity Storage Unit Processor Transport Network Coupler Weapon Light Cannon Energy Gun Small Laser Energy Cannon Beam Cannon Ballistic Gun Light Assault Rifle Ballistic Cannon Light Cannon Launcher Grenade Launcher Special Weapon Mining Laser Build | -11 -10 -10 -10 -9 -8 ------- Run | Yrd Mat Min Exi Min Mat Slots Evolved 4 | . . . . . 4 Power . | . . . . . . Propulsion 2 | . . . . . 2 Utility 2 | . . . . . 2 Weapon . | . . . . . . Parts Attached 29 | . 11 3 . 1 14 Power 2 | . . . . 1 1 Engine . | . . . . . . Core 2 | . . . . 1 1 Reactor . | . . . . . . Propulsion 8 | . 2 . . . 6 Treads 2 | . 2 . . . . Leg 5 | . . . . . 5 Wheel . | . . . . . . Hover 1 | . . . . . 1 Flight . | . . . . . . Utility 7 | . 3 . . . 4 Device 4 | . 2 . . . 2 Storage 1 | . 1 . . . . Processor 2 | . . . . . 2 Hackware . | . . . . . . Protection . | . . . . . . Artifact . | . . . . . . Weapon 12 | . 6 3 . . 3 Energy Gun . | . . . . . . Energy Cannon 3 | . 1 1 . . 1 Ballistic Gun . | . . . . . . Ballistic Cannon 2 | . 1 1 . . . Launcher 5 | . 2 1 . . 2 Special Weapon 2 | . 2 . . . . Impact Weapon . | . . . . . . Slashing Weapon . | . . . . . . Piercing Weapon . | . . . . . . Special Melee Weapon . | . . . . . . Unidentified Prototypes 3 | . . . . . 3 Parts Lost 3 | . 1 . . . 2 Power 1 | . . . . . 1 Propulsion . | . . . . . . Utility 1 | . . . . . 1 Weapon 1 | . 1 . . . . Highest Loss Streak 1 | . 1 . . . 1 To Critical Strikes . | . . . . . . Average Slot Usage (%) 99 | . 98 100 100 100 97 Engine 10 | . 14 14 14 1 . Core 3 | . . . . 12 9 Treads 23 | . 20 28 28 28 1 Leg 5 | . 7 . . . 34 Device 13 | . 12 14 14 14 16 Storage 13 | . 14 14 14 14 9 Energy Gun 1 | . 3 . . . . Energy Cannon 2 | . 5 1 . . 4 Ballistic Cannon 11 | . 10 12 14 14 9 Launcher 10 | . 7 12 14 14 4 Naked Turns . | . . . . . . Heaviest Build 56 | 10 50 50 50 52 56 Greatest Support 80 | 20 40 40 40 40 80 Greatest Overweight (x) 2 | . 2 1 1 1 2 Average Overweight (x) . | . . 1 1 1 . Largest Inventory Capacity 20 | 8 20 20 20 20 20 Average Capacity 19 | 8 18 20 20 20 20 Most Carried 20 | 8 17 19 20 20 20 Average Carried 16 | 6 12 18 19 20 19 Final Capacity 20 | 8 20 20 20 20 20 Final Carried 20 | 6 17 19 20 20 18 Class Distribution -------------------- 92% | Mutant 7% | Skirmisher Dominant Class ---------------- Mutant | -10/Materials Mutant | -10/Mines Mutant | -10/Exiles Mutant | -9/Mines Skirmisher | -8/Materials Resources | -11 -10 -10 -10 -9 -8 ----------- Run | Yrd Mat Min Exi Min Mat Matter Collected 988 | 218 341 76 . 114 239 Remotely . | . . . . . . Salvage Created 1447 | 140 449 96 . 244 518 Parts 105 | 16 33 13 . 23 20 Haulers Intercepted 4 | . 2 . . . 2 Recyclers Shooed 4 | 1 1 . . . 2 Parts Field Recycled . | . . . . . . Retrieved Matter . | . . . . . . Parts Self-Destructed . | . . . . . . Prevented . | . . . . . . Kills | -11 -10 -10 -10 -9 -8 ------- Run | Yrd Mat Min Exi Min Mat Combat Hostiles Destroyed 39 | . 10 6 . 11 12 Guns 1 | . 1 . . . . Cannons 12 | . 3 . . 3 6 AOE 26 | . 6 6 . 8 6 Classes Destroyed 10 | 2 6 1 . . 1 Worker 4 | . 1 1 . 2 . Builder 2 | . 1 . . 1 . Tunneler 5 | 5 . . . . . Hauler 4 | . 2 . . . 2 Recycler 3 | 1 1 1 . . . Operator 1 | . 1 . . . . Watcher 3 | . 3 . . . . Swarmer 13 | . . 6 . 4 3 Grunt 25 | . 10 . . 7 8 Sentry 1 | . . . . . 1 Best Kill Streak 5 | 4 4 3 . 4 5 Combat Bots Only 4 | . 4 3 . 4 4 Max Kills in Single Turn 5 | 1 2 3 . 3 5 Gunslinging . | . . . . . . Exploded 4 | . 2 3 . 3 4 Melee . | . . . . . . Uniques/NPCs Destroyed . | . . . . . . Combat | -11 -10 -10 -10 -9 -8 -------- Run | Yrd Mat Min Exi Min Mat Hostile Shots Fired 116 | . 39 16 . 20 41 Missed 40 | . 12 7 . 7 14 Damage Taken 1006 | . 432 78 . 132 364 Core 123 | . 37 31 . 9 46 Absorbed by Shields . | . . . . . . Core Remaining (%) 84 | 100 . . . 69 . Volleys Fired 148 | 18 68 6 1 13 42 Largest 2 | 2 2 1 1 1 2 Hottest 100 | 60 100 35 35 35 95 Shots Fired 180 | 36 74 6 1 13 50 Gun 55 | 36 19 . . . . Cannon 87 | . 38 1 1 5 42 Launcher 34 | . 13 5 . 8 8 Special 4 | . 4 . . . . Kinetic 90 | 18 33 1 1 5 32 Thermal 56 | 18 28 . . . 10 Explosive 26 | . 13 5 . 8 . Electromagnetic 8 | . . . . . 8 Robot Hit Streak 10 | 7 10 3 . 5 7 Robot Miss Streak 5 | 2 5 . . 1 5 Penetration Max . | . . . . . . Secondary Targets . | . . . . . . Shots Hit Robots 90 | 22 34 2 . 8 24 Core Hits 92 | 9 34 10 . 17 22 Critical Kills . | . . . . . . Critical Parts Destroyed . | . . . . . . Critical Strikes 5 | . 2 . . . 3 Blast 5 | . 2 . . . 3 Melee Attacks . | . . . . . . Impact . | . . . . . . Slashing . | . . . . . . Piercing . | . . . . . . Sneak Attacks . | . . . . . . Combat Hostiles . | . . . . . . Follow-up Attacks . | . . . . . . Damage Inflicted 3816 | 220 1187 378 . 812 1219 Guns 339 | 220 119 . . . . Cannons 892 | . 370 18 . 70 434 Explosions 2474 | . 676 313 . 733 752 Melee . | . . . . . . Ramming 111 | . 22 47 . 9 33 Kinetic 885 | 97 353 18 . 70 347 Thermal 346 | 123 136 . . . 87 Explosive 2050 | . 676 313 . 733 328 Electromagnetic 424 | . . . . . 424 Impact . | . . . . . . Slashing . | . . . . . . Piercing . | . . . . . . Highest Corruption 1 | . . . . . 1 Average Corruption 1 | . . . . . 1 Corruption Purged . | . . . . . . Corruption Blocked . | . . . . . . Effects 1 | . . . . . 1 Data Loss (minor) 1 | . . . . . 1 Overload Shots . | . . . . . . Overflow Damage 27 | . 2 6 . 10 9 Projectiles 2 | . 2 . . . . Explosions 25 | . . 6 . 10 9 Melee . | . . . . . . Knockbacks 7 | . 2 . . 1 4 Impact . | . . . . . . Kinetic 7 | . 2 . . 1 4 Secondary . | . . . . . . Self-Inflicted Damage 111 | . 81 10 . 2 18 Shots 11 | . 8 1 . 1 1 Rammed 16 | . 5 9 . 2 . Targets Rammed 21 | . 5 9 . 4 3 Kicked 3 | . . . . . 3 Crushed 2 | . . . . 2 . Highest Temperature 106 | 60 106 . . 3 99 Average Temperature 29 | 26 28 . . 2 34 Received Heat Transfer 390 | . 201 . . 36 153 Siege Activations . | . . . . . . Robots Corrupted . | . . . . . . Combat Hostiles . | . . . . . . Parts Fried 1 | . . . . . 1 Impact Corruptions . | . . . . . . Robots Melted . | . . . . . . Combat Hostiles . | . . . . . . Parts Melted . | . . . . . . Heat Transferred 772 | 275 312 . . . 185 Parts Sabotaged . | . . . . . . Parts Stolen . | . . . . . . Parts Stripped . | . . . . . . Power Chain Reactions . | . . . . . . Alert | -11 -10 -10 -10 -9 -8 ------- Run | Yrd Mat Min Exi Min Mat Peak Influence 328 | 30 228 250 . 244 328 Initial 57 | . 19 57 . . . Average 66 | 14 60 44 . 98 73 Maximum Alert Level 1 | . 1 1 . 1 1 Low Security (%) 90 | 100 95 95 . 77 87 Level 1 9 | . 4 4 . 22 12 Level 2 . | . . . . . . Level 3 . | . . . . . . Level 4 . | . . . . . . Level 5 . | . . . . . . High Security . | . . . . . . Max Security . | . . . . . . Squads Dispatched 2 | . 2 . . . . Investigation 2 | . 2 . . . . Extermination . | . . . . . . Reinforcement . | . . . . . . Assault . | . . . . . . Garrison . | . . . . . . Intercept . | . . . . . . Searches Triggered . | . . . . . . Construction Impeded . | . . . . . . Haulers Reinforced . | . . . . . . Active Scanning Responses . | . . . . . . Cargo Convoy Interrupts . | . . . . . . Stealth | -11 -10 -10 -10 -9 -8 --------- Run | Yrd Mat Min Exi Min Mat Distress Signals . | . . . . . . Communications Jammed . | . . . . . . Distress Signals . | . . . . . . Times Spotted 50 | . 17 6 . 12 15 Peak Tracking Total 4 | . 4 3 . 4 4 Tactical Retreats 3 | . . . . . 3 Traps | -11 -10 -10 -10 -9 -8 ------- Run | Yrd Mat Min Exi Min Mat Traps Triggered 1 | . . . . . 1 Indirectly 1 | . . . . . 1 Trap Hack Attempts . | . . . . . . Triggered . | . . . . . . Disarmed . | . . . . . . Reprogrammed . | . . . . . . Reused . | . . . . . . Traps Extracted . | . . . . . . Installed . | . . . . . . Triggered . | . . . . . . Machines | -11 -10 -10 -10 -9 -8 ---------- Run | Yrd Mat Min Exi Min Mat Machines Disabled 8 | . 2 . 1 . 5 Max in Single Turn 3 | . 1 . 1 . 3 Machines Repaired . | . . . . . . Machines Dismantled . | . . . . . . Machines Sabotaged . | . . . . . . Overloaded Fab Kills . | . . . . . . Hacking | -11 -10 -10 -10 -9 -8 --------- Run | Yrd Mat Min Exi Min Mat Machines Accessed 12 | . 10 . 1 . 1 Terminals 8 | . 7 . . . 1 Fabricators . | . . . . . . Repair Stations 1 | . 1 . . . . Recycling Units 2 | . 2 . . . . Scanalyzers . | . . . . . . Garrison Access . | . . . . . . Total Hacks 31 | . 27 . 1 . 3 Successful 16 | . 14 . 1 . 1 Failed 15 | . 13 . . . 2 Catastrophic 2 | . 1 . . . 1 Database Lockouts . | . . . . . . Manual 20 | . 16 . 1 . 3 Terminals 26 | . 23 . . . 3 Fabricators . | . . . . . . Repair Stations 2 | . 2 . . . . Recycling Units 2 | . 2 . . . . Scanalyzers . | . . . . . . Garrison Access . | . . . . . . Terminal Hacks 12 | . 10 . 1 . 1 Record 1 | . 1 . . . . Robot Analysis 2 | . 2 . . . . Prototype ID Bank 5 | . 5 . . . . Terminal Index 1 | . . . . . 1 Locate Traps 1 | . 1 . . . . Hauler Manifests 1 | . 1 . . . . Derelict Proto ID Bank 1 | . . . 1 . . Fabricator Hacks . | . . . . . . Repair Station Hacks 1 | . 1 . . . . Scan Component 1 | . 1 . . . . Recycling Unit Hacks . | . . . . . . Scanalyzer . | . . . . . . Garrison Access Hacks . | . . . . . . Unauthorized Hacks 3 | . 3 . . . . Terminals 1 | . 1 . . . . Operators 1 | . 1 . . . . Fabricators . | . . . . . . Repair Stations . | . . . . . . Recycling Units 2 | . 2 . . . . Tunnel 2 | . 2 . . . . Scanalyzers . | . . . . . . Garrison Access . | . . . . . . Data Cores Recovered . | . . . . . . Used . | . . . . . . Hacking Detections 7 | . 6 . . . 1 Full Trace Events . | . . . . . . Feedback Events . | . . . . . . Feedback Blocked . | . . . . . . Robot Schematics Acquired . | . . . . . . Robots Built . | . . . . . . Authchips . | . . . . . . Time . | . . . . . . Total Robot Build Rating . | . . . . . . Part Schematics Acquired . | . . . . . . Parts Built . | . . . . . . Authchips . | . . . . . . Time . | . . . . . . Total Part Build Rating . | . . . . . . Parts Repaired . | . . . . . . Time . | . . . . . . Parts Recycled . | . . . . . . Recycled Matter . | . . . . . . Retrieved Matter . | . . . . . . Retrieved Components . | . . . . . . Parts Scanalyzed . | . . . . . . Part Schematics Acquired . | . . . . . . Parts Damaged . | . . . . . . Bothacking | -11 -10 -10 -10 -9 -8 ------------ Run | Yrd Mat Min Exi Min Mat Used RIF Installer . | . . . . . . Robots Hacked . | . . . . . . Non-combat . | . . . . . . Combat . | . . . . . . Robot Hacks Applied . | . . . . . . Relay Couplers Released . | . . . . . . Fabnet Peak Effective % . | . . . . . . Robots Rewired . | . . . . . . Allies Hacked . | . . . . . . Hacks Repelled . | . . . . . . Allies | -11 -10 -10 -10 -9 -8 -------- Run | Yrd Mat Min Exi Min Mat Total Allies 3 | . . . . 3 . Largest Group 3 | . . . . 3 1 Highest-Rated Group 40 | . . . . 40 16 Highest-Rated Ally 16 | . . . . 16 16 Total Orders . | . . . . . . Ally Attacks 21 | . . . . 13 8 Total Damage 200 | . . . . 124 76 Kills 1 | . . . . 1 . Allies Corrupted . | . . . . . . Allies Melted . | . . . . . . Intel | -11 -10 -10 -10 -9 -8 ------- Run | Yrd Mat Min Exi Min Mat Robot Analysis Total 2 | . 2 . . . . Derelict Logs Recovered 4 | . . 3 . 1 . Drone Launches . | . . . . . . Drone Recoveries . | . . . . . . Exploration | -11 -10 -10 -10 -9 -8 ------------- Run | Yrd Mat Min Exi Min Mat Turns Passed 6457 | 115 2335 1382 699 1410 516 Spaces Moved 2573 | 43 857 560 291 572 250 Core . | . . . . . . Treads 2012 | . 578 560 291 572 11 Legs 561 | 43 279 . . . 239 Wheels . | . . . . . . Hover . | . . . . . . Flight . | . . . . . . Fastest Speed 120 | 120 120 240 240 240 130 Average Speed 222 | 120 222 240 240 240 136 Slowest Speed 270 | 120 260 240 240 240 270 Overloaded Moves . | . . . . . . Propulsion Burnouts . | . . . . . . Robots Hopped . | . . . . . . Cave-ins Triggered . | . . . . . . Exploration Rate (%) 62 | 3 97 96 66 93 21 Regions Visited 5 Branch Regions 3 Pre-discovered Areas 3 | . 2 1 . . . Known Exits Taken 1 | . . . 1 . . Unknown Exits Taken 4 | 1 1 1 . 1 . Scrap Searched 2 | . . 1 . 1 . Spaces Dug 16 | . 4 . . 12 . Terrain Destroyed 229 | . 71 38 . 66 54 Melee . | . . . . . . Projectile 1 | . 1 . . . . AOE 228 | . 70 38 . 66 54 Terrain Rammed . | . . . . . . Walls Destroyed . | . . . . . . Machines Disabled . | . . . . . . Actions | -11 -10 -10 -10 -9 -8 --------- Run | Yrd Mat Min Exi Min Mat Total 3106 | 75 1192 579 292 592 376 Wait 291 | 11 230 . . 2 48 Move 2568 | 42 856 559 290 571 250 Hop . | . . . . . . Pick Up 29 | 2 16 2 1 . 8 Fast Attach 8 | . 2 . . . 6 Attach 6 | . 1 . . . 5 Detach 1 | . . . . . 1 Swap 15 | . 8 3 . 1 3 Drop 19 | 2 6 . . 1 10 Fire 148 | 18 68 6 1 13 42 Melee . | . . . . . . Ram . | . . . . . . Kick 3 | . . . . . 3 Crush 18 | . 5 9 . 4 . Escape Stasis . | . . . . . . Rewire . | . . . . . . Trap . | . . . . . . Miscellaneous . | . . . . . . Route ------- -11/Scrapyard -10/Materials (discovered 4 exits: [*Mat x3] / [*Min]) -10/Mines (discovered 3 exits: [*Mat x2] / *Exi) -10/Exiles (discovered 2 exits: *Min x2) -9/Mines (discovered 2 exits: *Mat x2) -8/Materials History --------- Turn | Location | Event 1 | -11/Scrapyard | Discovered new exit (range 1) 116 | -11/Scrapyard | Entered Materials 320 | -10/Materials | Discovered new exit (range 7) 327 | -10/Materials | Build established: Mutant 967 | -10/Materials | Discovered new exit (range 14) 1138 | -10/Materials | Discovered new exit (range 16) 1387 | -10/Materials | Discovered new exit (range 8) 2451 | -10/Materials | Entered Mines 2452 | -10/Mines | Assembled infested the area 2702 | -10/Mines | Discovered new exit (range 14) 2761 | -10/Mines | Discovered new exit (range 5) 2928 | -10/Mines | Found a damaged Exp. Sensor Array with a note attached 2935 | -10/Mines | Found Prototype Device 3043 | -10/Mines | Learned location of Storage (-9) 3219 | -10/Mines | Learned Materials trap positions 3416 | -10/Mines | Discovered new exit (range 5) 3833 | -10/Mines | Entered Exiles 3834 | -10/Exiles | Identified exit to Mines 3898 | -10/Exiles | Met 8R-AWN 3932 | -10/Exiles | Met EX-HEX 4106 | -10/Exiles | Met EX-BIN 4216 | -10/Exiles | Aligned with FarCom system 4218 | -10/Exiles | Given EX-Vault access code 4276 | -10/Exiles | Opened EX-Vault 4326 | -10/Exiles | Warned to stay clear of 0b10 Research branches 4398 | -10/Exiles | Met EX-DEC 4532 | -10/Exiles | Entered Mines 4565 | -9/Mines | Discovered new exit (range 11) 4804 | -9/Mines | Discovered new exit (range 3) 4890 | -9/Mines | Learned Materials emergency access door positions 5003 | -9/Mines | Assisted by bots powering up and referring to "LRC-V3" 5942 | -9/Mines | Entered Materials 5942 | -8/Materials | Accompanied by 1 ally 5942 | -8/Materials | Evolved 4 slots: Propulsion x2, Utility x2 5943 | -8/Materials | Loaded intel: 18 trap records 5985 | -8/Materials | Identified Exp. Sensor Array 6310 | -8/Materials | Build established: Skirmisher 6458 | -8/Materials | Self-destructed Last Messages --------------- 06423_ K-01 Serf collects debris. 06427_ R-06 Scavenger collects Terrain Scan Processor. 06429_ S-10 Pest destroyed. 06429_ Door malfunctions. 06430_ K-01 Serf collects debris. 06431_ Destroyed Flight Unit. 06433_ K-01 Serf collects debris. 06435_ Flight Unit fried. 06435_ S-10 Pest destroyed. 06436_ K-01 Serf collects debris. 06437_ S-10 Pest misfires. 06439_ Destroyed Flight Unit. 06439_ K-01 Serf collects debris. 06442_ Lgt. Nuclear Core destroyed. 06443_ K-01 Serf collects debris. 06446_ System corrupted: Component data lost. 06447_ K-01 Serf collects debris. 06447_ S-10 Pest destroyed. 06450_ K-01 Serf collects debris. 06457_ Acquired 60 matter. Map ----- +----------------------------------------------------+ | ???????????????????????????????????????#########% | | ???????????????????????????????????????######### | | ??????????????????????????????????????????????## " | | ??????????????????????????????????????????????## " | | ??????????????????????????????????????????????## | | ??????????????????????????????????????????????## | | ??????????????????????????????????????????????## | | ??????????????????????????????????????????????#### | | ??????????????????????????????????????????????#### | | ?????????????????????????????????????????????????? | | ??????????????????????????? ?????????????####### | | ???????????????????????????##/?################### | | ?????????????????????????? # %?############## | | ?????????????????????????? # ### # # #### | | ^????????????????????????? /%%#### ## ### """ | | ^????????????????????????? # ## # #### """ | | ^^^??????????????????????? #% # ### """ | | ?^???????????????????????? / # # ### | | ???????????????????######### # ########+# | | ???????????????????######### # ##### | | ???????????????????## # # !w% % ! ! | | ???????????????????##""" ! # # = ##### % | | ???????????????????##""" # #]] ####### # | | ???????????????????##""" # #]] % # ##?### # | | ???????????????????## !# #] # ###### # | | ?????????????########] @ # #####+# % ####### # | | ??????????aw? ###########/## %=* [=! = # | | ???????? !!= =%=[% # | | ???????? ! ^^ ^ | | ?????????## ################+## ^ ^ | | ????????? # ? ######### # | | ??????????????????????????"" # " | | ????????????????????????""""" # | | ??????????????????????? """"" # ! ###### | | ??????????????????????? """"" # ###### | | ???????????????????????? """ # ##???? | | ????????????????????????? # ???? | | ????????????????????????? # ##? | | ?????????????????????????######## ## ####? | | ?????????????????????????############## ####? | | ???????????????????????????????########! !##??? | | ?????????????????????????????????????###!!!!###??? | | ?????????????????????????????????????##########??? | | ???????????????????????????????????????#######???? | | | | | | | | | | | | | +----------------------------------------------------+ Best States ------------- Heat Dissipation 31 Energy Generation 14 Energy Capacity 160 Matter Stores 300 Matter Capacity 300 Sight Range 18 Terrain Scan Density 10 Evasion (%) 55 Recoil Reduction 2 Item Schematics ----------------- None Robot Schematics ------------------ None Fabricated ------------ Nothing Alien Tech Used ----------------- None Achievements -------------- None Challenges ------------ None Game ------ Seed SpliceInsulationInsulator Manual? 0 Play Time 00:36:39 Cumulative 54.4 hours Start 2024.04.20 @ 13:55:57 End 2024.04.20 @ 14:35:52 Sessions 1 Manual Loads 0 Difficulty Rogue Special Mode None Game No. 32 Rogue 32 Adventurer 0 Explorer 0 Win Type - Total 0 Types 0/0/0/0/0/0/0/0/0 Lore% 27 Gallery% 36 Achievement% 32 Wizard Run 0 Options --------- Layout 0 ASCII 0 Keyboard 0 Movement Numpad Keybinds 1 Fullscreen 1 Font 18/SmallcapsGlow Map View 76x50 Zoom Use 0% Tactical HUD 1 Map Filters NONE Filters NONE Steam 1 RUN: 7369edd7-5380-40b3-a07e-8f1222394195